bitfinex-derivatives/quotes_BNBF0:USTF0_20250302
["timestamp","ask_amount","ask_price","bid_price","bid_amount"]
[1740917691935,1.72246672,606.44,606.02,3.553]
[1740917692630,1.13120711,606.43,606.02,3.553]
[1740917692834,1.13120711,606.42,606.02,3.553]
[1740917693629,1.13120711,606.41,606.02,3.553]
[1740917694032,1.13120711,606.4,606.02,3.553]
[1740917694636,1.13120711,606.39,606.02,3.553]
[1740917695038,1.13120711,606.38,606.02,3.553]
[1740917695631,1.13120711,606.37,606.02,3.553]
[1740917696841,3.03257748,606.51,606.02,3.553]
[1740917697034,2.56273014,606.5,606.02,3.553]
[1740917697238,1.13150223,606.5,606.02,3.553]
[1740917697538,1.13150223,606.49,606.02,3.553]
[1740917697940,1.13150223,606.48,606.02,3.553]
[1740917698240,1.13150223,606.47,606.02,3.553]
[1740917698940,1.13150223,606.46,606.02,3.553]
[1740917699440,1.13150223,606.45,606.02,3.553]
[1740917699840,1.13150223,606.44,606.02,3.553]
[1740917700237,1.13150223,606.43,606.02,3.553]
[1740917700836,1.13150223,606.42,606.02,3.553]
[1740917701343,1.7222252,606.52,606.02,3.553]
[1740917701538,1.1317401,606.51,606.02,3.553]
[1740917702243,1.1317401,606.5,606.02,3.553]
[1740917702445,1.7222181,606.52,606.02,3.553]
[1740917702446,1.1317401,606.49,606.02,3.553]
[1740917703145,1.1317401,606.48,606.02,3.553]
[1740917703548,1.1317401,606.47,606.02,3.553]
[1740917703943,1.1317401,606.46,606.02,3.553]
[1740917704445,1.1317401,606.45,606.02,3.553]
[1740917704841,1.1317401,606.44,606.02,3.553]
[1740917705248,1.1317401,606.43,606.02,3.553]
[1740917705944,1.1317401,606.42,606.02,3.553]
[1740917706348,1.72223941,606.52,606.02,3.553]
[1740917706742,1.13165108,606.51,606.02,4.774]
[1740917707548,1.13165108,606.5,606.02,4.774]
[1740917708043,1.72223941,606.52,606.02,4.774]
[1740917708044,1.13165108,606.49,606.02,4.774]
[1740917708547,1.13165108,606.48,606.02,4.774]
[1740917709449,1.13165108,606.47,606.02,4.774]
[1740917709845,1.13165108,606.46,606.02,4.774]
[1740917710443,1.13165108,606.45,606.02,4.774]
[1740917711351,1.13165108,606.44,606.02,4.774]
[1740917711747,1.722211,606.54,606.02,4.774]
[1740917712353,1.60184542,606.7,606.02,4.774]
[1740917712551,1.13181369,606.53,606.02,4.774]
[1740917712949,1.13181369,606.52,606.02,4.774]
[1740917713654,1.13181369,606.51,606.02,4.774]
[1740917714252,1.13181369,606.5,606.02,4.774]
[1740917714754,1.13181369,606.49,606.02,4.774]
[1740917715454,1.13181369,606.48,606.02,4.774]
[1740917715950,1.13181369,606.47,606.02,4.774]
[1740917716347,1.13181369,606.46,606.02,4.774]
[1740917716548,1.13181369,606.45,606.02,4.774]
[1740917717453,1.13181369,606.44,606.02,4.774]
[1740917717955,1.72218969,606.55,606.02,4.774]
[1740917718455,2.56417985,606.54,606.02,4.774]
[1740917718651,1.13207537,606.54,606.02,4.774]
[1740917718855,1.13207537,606.53,606.02,4.774]
[1740917719657,1.13207537,606.52,606.02,4.774]
[1740917720059,1.13207537,606.51,606.02,4.774]
[1740917720650,1.13207537,606.5,606.02,4.774]
[1740917721155,1.13207537,606.49,606.02,4.774]
[1740917721552,1.13207537,606.48,606.02,4.774]
[1740917721956,1.13207537,606.47,606.02,4.774]
[1740917722558,1.13207537,606.46,606.02,4.774]
[1740917723258,1.13207537,606.45,606.02,4.774]
[1740917724053,1.13207537,606.44,606.02,4.774]
[1740917724358,1.13207537,606.43,606.02,4.774]
[1740917724756,1.72218969,606.54,606.02,4.774]
[1740917725251,1.13274225,606.53,606.02,4.774]
[1740917726053,1.13274225,606.52,606.02,4.774]
[1740917726355,1.13274225,606.52,606.03,0.33001666]
[1740917726552,1.13274225,606.51,606.03,0.33001666]
[1740917727153,1.13274225,606.5,606.03,0.33001666]
[1740917727359,1.13274225,606.49,606.03,0.33001666]
[1740917727851,1.13274225,606.48,606.03,0.33001666]
[1740917728257,1.13274225,606.47,606.03,0.33001666]
[1740917728858,1.13274225,606.46,606.03,0.33001666]
[1740917729462,1.72207606,606.62,606.03,0.33001666]
[1740917729661,3.03526677,606.61,606.03,0.33001666]
[1740917729860,3.03526677,606.6,606.03,4.22301666]
[1740917730059,4.16770494,606.59,606.03,4.22301666]
[1740917730258,1.13243817,606.59,606.03,4.22301666]
[1740917730462,1.13243817,606.58,606.03,4.22301666]
[1740917730959,1.13243817,606.57,606.03,4.22301666]
[1740917731361,1.13243817,606.56,606.03,4.22301666]
[1740917731755,1.13243817,606.55,606.03,4.22301666]
[1740917732365,1.13243817,606.54,606.03,4.22301666]
[1740917732862,1.13243817,606.53,606.03,4.22301666]
[1740917733565,1.13243817,606.52,606.03,4.22301666]
[1740917734065,1.13243817,606.51,606.03,4.22301666]
[1740917734966,1.13243817,606.5,606.03,4.22301666]
[1740917737868,1.13237487,606.5,606.03,5.73201666]
[1740917738268,1.13237487,606.49,606.03,5.73201666]
[1740917739067,1.13237487,606.48,606.03,5.73201666]
[1740917739470,1.13237487,606.47,606.03,5.73201666]
[1740917739867,1.13237487,606.46,606.03,5.73201666]
[1740917740268,1.13237487,606.45,606.03,5.73201666]
[1740917740767,1.13237487,606.44,606.03,5.73201666]
[1740917741264,1.13237487,606.43,606.03,5.73201666]
[1740917741771,1.72224651,606.5,606.03,5.73201666]
[1740917741772,1.13237487,606.42,606.03,5.73201666]
[1740917742272,1.13237487,606.41,606.03,5.73201666]
[1740917744870,3.03523171,606.49,606.03,5.73201666]
[1740917744871,1.13237487,606.4,606.03,5.73201666]
[1740917745367,1.13237487,606.39,606.03,5.73201666]
[1740917745970,1.13237487,606.38,606.03,5.73201666]
[1740917746473,1.13237487,606.37,606.03,5.73201666]
[1740917747076,1.72237437,606.45,606.03,5.73201666]
[1740917747477,1.43246145,606.44,606.03,5.73201666]
[1740917747777,1.72237437,606.45,606.03,5.73201666]
[1740917747778,1.132382,606.43,606.03,5.73201666]
[1740917748176,1.132382,606.42,606.03,5.73201666]
[1740917748478,1.132382,606.41,606.03,5.73201666]
[1740917748680,1.72237437,606.45,606.03,5.73201666]
[1740917748681,1.132382,606.4,606.03,5.73201666]
[1740917749476,1.132382,606.39,606.03,5.73201666]
[1740917749882,1.132382,606.38,606.03,5.73201666]
[1740917750381,1.132382,606.37,606.03,5.73201666]
[1740917750778,1.132382,606.36,606.03,5.73201666]
[1740917751176,1.132382,606.35,606.03,5.73201666]
[1740917751580,1.132382,606.34,606.03,5.73201666]
[1740917751776,1.132382,606.34,606.03,1.83901666]
[1740917752182,1.132382,606.33,606.03,1.83901666]
[1740917752578,1.7224241,606.44,606.03,1.83901666]
[1740917752982,1.13266763,606.43,606.03,1.83901666]
[1740917753481,1.13266763,606.42,606.03,1.83901666]
[1740917754078,1.13266763,606.41,606.03,1.83901666]
[1740917754579,1.13266763,606.4,606.03,1.83901666]
[1740917754776,1.13266763,606.39,606.03,1.83901666]
[1740917755082,1.13266763,606.39,606.03,5.31501666]
[1740917755482,1.72225361,606.53,606.03,5.31501666]
[1740917755777,1.60325965,606.52,606.03,5.31501666]
[1740917755984,1.72225361,606.53,606.03,5.31501666]
[1740917756186,4.16723964,606.52,606.03,5.31501666]
[1740917756380,1.13231544,606.52,606.03,5.31501666]
[1740917756577,1.13231544,606.51,606.03,5.31501666]
[1740917756986,1.13231544,606.5,606.03,5.31501666]
[1740917757178,1.13231544,606.49,606.03,5.31501666]
[1740917757879,1.13231544,606.48,606.03,5.31501666]
[1740917758084,1.13231544,606.47,606.03,5.31501666]
[1740917758683,1.13231544,606.46,606.03,5.31501666]
[1740917758879,1.13231544,606.45,606.03,5.31501666]
[1740917759280,1.13231544,606.44,606.03,5.31501666]
[1740917760080,3.03597438,606.57,606.03,5.31501666]
[1740917760284,1.72212577,606.58,606.03,5.31501666]
[1740917760588,3.03611569,606.57,606.03,5.31501666]
[1740917760783,1.13280705,606.57,606.03,5.31501666]
[1740917761383,1.13280705,606.56,606.03,5.31501666]
[1740917761792,1.43289083,606.55,606.03,5.31501666]
[1740917761987,1.13280705,606.55,606.03,5.31501666]
[1740917762389,1.13280705,606.54,606.03,5.31501666]
[1740917762787,1.13280705,606.53,606.03,5.31501666]
[1740917763291,1.13280705,606.52,606.03,5.31501666]
[1740917763790,1.13280705,606.51,606.03,5.31501666]
[1740917764185,1.72206186,606.61,606.03,5.31501666]
[1740917764186,1.13280705,606.5,606.03,5.31501666]
[1740917764990,1.13280705,606.49,606.03,5.31501666]
[1740917765585,1.13280705,606.48,606.03,5.31501666]
[1740917766186,1.13280705,606.47,606.03,5.31501666]
[1740917766785,3.03488592,606.8,606.03,5.31501666]
[1740917766991,1.72209736,606.61,606.03,5.31501666]
[1740917767189,3.03488592,606.6,606.03,5.31501666]
[1740917767387,1.13229879,606.59,606.03,5.31501666]
[1740917768093,1.13229879,606.58,606.03,5.31501666]
[1740917768789,1.13229879,606.57,606.03,5.31501666]
[1740917769093,1.13229879,606.56,606.03,5.31501666]
[1740917769493,1.13229879,606.55,606.03,5.31501666]
[1740917769789,1.13229879,606.54,606.03,5.31501666]
[1740917770193,1.13229879,606.53,606.03,5.31501666]
[1740917770589,1.13229879,606.52,606.03,5.31501666]
[1740917771194,1.13229879,606.51,606.03,5.31501666]
[1740917771594,1.13229879,606.5,606.03,5.31501666]
[1740917772294,1.13229879,606.49,606.03,5.31501666]
[1740917772796,3.03427785,606.62,606.03,5.31501666]
[1740917772996,3.03427785,606.61,606.03,5.31501666]
[1740917773197,1.43199672,606.6,606.03,5.31501666]
[1740917773395,1.43199672,606.59,606.03,5.31501666]
[1740917773596,1.13205096,606.61,606.03,5.31501666]
[1740917773797,3.03407428,606.6,606.03,5.31501666]
[1740917774093,2.56395602,606.59,606.03,5.31501666]
[1740917774297,1.13205096,606.59,606.03,5.31501666]
[1740917774698,1.13205096,606.58,606.03,5.31501666]
[1740917774899,1.13205096,606.57,606.03,5.31501666]
[1740917775300,1.13205096,606.56,606.03,5.31501666]
[1740917775599,1.13205096,606.55,606.03,5.31501666]
[1740917775801,1.13205096,606.54,606.03,5.31501666]
[1740917776203,1.13205096,606.53,606.03,5.31501666]
[1740917776596,3.03330089,606.52,606.03,5.31501666]
[1740917776802,1.60176742,606.51,606.03,5.31501666]
[1740917777101,1.13205096,606.51,606.03,5.31501666]
[1740917777702,1.13205096,606.5,606.03,5.31501666]
[1740917778097,1.13205096,606.49,606.03,5.31501666]
[1740917778496,1.13205096,606.48,606.03,5.31501666]
[1740917779104,1.13205096,606.47,606.03,5.31501666]
[1740917779699,1.13205096,606.46,606.03,5.31501666]
[1740917780308,1.13205096,606.45,606.03,5.31501666]
[1740917780605,1.13205096,606.44,606.03,5.31501666]
[1740917781305,1.13205096,606.43,606.03,5.31501666]
[1740917781806,1.13205096,606.42,606.03,5.31501666]
[1740917782604,1.13205096,606.41,606.03,5.31501666]
[1740917783006,1.13205096,606.4,606.03,5.31501666]
[1740917783605,3.03379713,606.6,606.03,5.31501666]
[1740917783806,0.98115221,606.78,606.03,5.31501666]
[1740917783807,3.03379713,606.59,606.03,5.31501666]
[1740917784001,3.03379713,606.58,606.03,5.31501666]
[1740917784204,3.03379713,606.57,606.03,5.31501666]
[1740917784407,3.03379713,606.56,606.03,5.31501666]
[1740917784600,3.03379713,606.55,606.03,5.31501666]
[1740917784800,3.03379713,606.54,606.03,5.31501666]
[1740917785003,3.03379713,606.53,606.03,5.31501666]
[1740917785206,1.13194146,606.54,606.03,5.31501666]
[1740917785403,1.13194146,606.52,606.03,5.31501666]
[1740917786007,1.13194146,606.51,606.03,5.31501666]
[1740917786809,1.13194146,606.5,606.03,5.31501666]
[1740917787109,1.13194146,606.49,606.03,5.31501666]
[1740917787608,1.13194146,606.48,606.03,5.31501666]
[1740917788208,1.13194146,606.47,606.03,5.31501666]
[1740917788609,1.13194146,606.46,606.03,5.31501666]
[1740917788909,1.13194146,606.45,606.03,5.31501666]
[1740917789511,1.13194146,606.44,606.03,5.31501666]
[1740917789909,1.43194667,606.55,606.03,5.31501666]
[1740917790109,0.98109943,606.76,606.03,5.31501666]
[1740917790307,3.03372919,606.75,606.03,5.31501666]
[1740917790510,4.16577716,606.74,606.03,5.31501666]
[1740917790712,3.03372919,606.73,606.03,5.31501666]
[1740917790911,4.16577716,606.72,606.03,5.31501666]
[1740917791212,3.03372919,606.71,606.03,5.31501666]
[1740917791409,3.03372919,606.7,606.03,5.31501666]
[1740917791611,3.03372919,606.69,606.03,5.31501666]
[1740917791805,3.03372919,606.68,606.03,5.31501666]
[1740917792012,4.16577716,606.67,606.03,5.31501666]
[1740917792208,3.03372919,606.66,606.03,5.31501666]
[1740917792511,3.03372919,606.65,606.03,5.31501666]
[1740917792706,3.03372919,606.64,606.03,5.31501666]
[1740917792914,3.03372919,606.63,606.03,5.31501666]
[1740917793113,3.03372919,606.62,606.03,5.31501666]
[1740917793313,4.16577716,606.61,606.03,5.31501666]
[1740917793613,3.03372919,606.6,606.03,5.31501666]
[1740917793815,3.03372919,606.59,606.03,5.31501666]
[1740917794008,1.43175057,606.58,606.03,5.31501666]
[1740917794215,1.13204797,606.59,606.03,5.31501666]
[1740917794415,1.13204797,606.58,606.03,5.31501666]
[1740917794915,1.13204797,606.57,606.03,5.31501666]
[1740917795414,1.13204797,606.56,606.03,5.31501666]
[1740917795816,1.13204797,606.55,606.03,5.31501666]
[1740917796017,1.13204797,606.54,606.03,5.31501666]
[1740917796616,1.13204797,606.53,606.03,5.31501666]
[1740917797219,1.13204797,606.52,606.03,5.31501666]
[1740917797811,1.13204797,606.51,606.03,5.31501666]
[1740917798411,1.13204797,606.5,606.03,5.31501666]
[1740917799016,1.13204797,606.49,606.03,5.31501666]
[1740917799319,3.03425129,606.62,606.03,5.31501666]
[1740917799513,3.03425129,606.61,606.03,5.31501666]
[1740917799717,1.43198718,606.6,606.03,5.31501666]
[1740917800022,1.72193404,606.66,606.03,5.31501666]
[1740917800215,4.16644092,606.65,606.03,5.31501666]
[1740917800415,3.03434895,606.64,606.03,5.31501666]
[1740917800614,3.03434895,606.63,606.03,5.31501666]
[1740917800921,3.03434895,606.62,606.03,5.31501666]
[1740917801221,3.03424077,606.61,606.03,5.31501666]
[1740917801422,3.03419547,606.6,606.03,5.31501666]
[1740917801621,1.43201512,606.59,606.03,5.31501666]
[1740917801822,1.13209197,606.59,606.03,5.31501666]
[1740917802523,1.13209197,606.58,606.03,5.31501666]
[1740917802824,1.13209197,606.57,606.03,5.31501666]
[1740917803416,1.13209197,606.56,606.03,5.31501666]
[1740917804224,1.13209197,606.55,606.03,5.31501666]
[1740917804724,1.13209197,606.54,606.03,5.31501666]
[1740917805325,1.13209197,606.53,606.03,5.31501666]
[1740917805521,1.13209197,606.52,606.03,5.31501666]
[1740917806127,1.13209197,606.51,606.03,5.31501666]
[1740917806626,1.13209197,606.5,606.03,5.31501666]
[1740917807421,1.13209197,606.49,606.03,5.31501666]
[1740917807924,1.13209197,606.48,606.03,5.31501666]
[1740917808519,0.98109943,606.8,606.03,5.31501666]
[1740917808721,4.16754652,606.79,606.03,5.31501666]
[1740917808924,1.72230333,606.47,606.03,5.31501666]
[1740917809124,3.03514146,606.76,606.03,5.31501666]
[1740917809324,1.13240506,606.46,606.03,5.31501666]
[1740917809725,1.13240506,606.45,606.03,5.31501666]
[1740917810324,1.13240506,606.44,606.03,5.31501666]
[1740917810827,0.98109943,606.78,606.03,5.31501666]
[1740917810828,1.13240506,606.43,606.03,5.31501666]
[1740917811226,1.13240506,606.42,606.03,5.31501666]
[1740917811730,1.13240506,606.41,606.03,5.31501666]
[1740917812130,1.13240506,606.4,606.03,5.31501666]
[1740917812729,1.72224651,606.54,606.03,5.31501666]
[1740917813032,2.73590358,606.53,606.03,5.31501666]
[1740917813232,1.60329967,606.52,606.03,5.31501666]
[1740917813432,1.13273593,606.51,606.03,5.31501666]
[1740917814027,1.13273593,606.5,606.03,5.31501666]
[1740917814332,1.13273593,606.49,606.03,5.31501666]
[1740917814929,1.13273593,606.48,606.03,5.31501666]
[1740917815535,1.13273593,606.47,606.03,5.31501666]
[1740917816036,1.13273593,606.46,606.03,5.31501666]
[1740917816437,1.13273593,606.45,606.03,5.31501666]
[1740917817036,1.60307661,606.44,606.03,5.31501666]
[1740917817234,1.13273593,606.44,606.03,5.31501666]
[1740917817834,2.85515292,606.43,606.03,5.31501666]
[1740917818032,1.60294023,606.42,606.03,5.31501666]
[1740917818233,1.60290415,606.41,606.03,5.31501666]
[1740917818428,1.13273593,606.41,606.03,5.31501666]
[1740917818936,1.13273593,606.4,606.03,5.31501666]
[1740917819740,1.13273593,606.39,606.03,5.31501666]
[1740917820334,1.13273593,606.38,606.03,5.31501666]
[1740917820938,1.13273593,606.37,606.03,5.31501666]
[1740917821545,1.13273593,606.36,606.03,5.31501666]
[1740917822342,1.13273593,606.35,606.03,5.31501666]
[1740917823045,1.13273593,606.34,606.03,5.31501666]
[1740917823344,1.13273593,606.34,606.03,0.33001666]
[1740917823535,1.13273593,606.33,606.03,0.33001666]
[1740917823740,1.13273593,606.32,606.03,0.33001666]
[1740917824337,1.13273593,606.31,606.03,0.33001666]
[1740917825042,1.72250225,606.4,606.03,0.33001666]
[1740917825343,1.13007309,606.39,606.03,0.33001666]
[1740917825839,1.13007309,606.38,606.03,0.33001666]
[1740917826445,1.13007309,606.37,606.03,5.34401666]
[1740917827238,1.13007309,606.36,606.03,5.34401666]
[1740917827843,1.72250225,606.4,606.03,5.34401666]
[1740917828239,1.12990761,606.39,606.03,5.34401666]
[1740917828644,1.12990761,606.38,606.03,5.34401666]
[1740917829041,1.12990761,606.37,606.03,5.34401666]
[1740917829638,1.12990761,606.36,606.03,5.34401666]
[1740917830043,1.12990761,606.35,606.03,5.34401666]
[1740917830643,1.7224241,606.44,606.03,5.34401666]
[1740917831145,1.1296219,606.43,606.03,5.34401666]
[1740917831439,1.1296219,606.42,606.03,5.34401666]
[1740917831843,1.1296219,606.41,606.03,5.34401666]
[1740917832546,0.98001799,606.66,606.03,5.34401666]
[1740917832547,1.1296219,606.4,606.03,5.34401666]
[1740917832748,1.1296219,606.39,606.03,5.34401666]
[1740917833146,1.1296219,606.38,606.03,5.34401666]
[1740917833647,1.1296219,606.37,606.03,5.34401666]
[1740917834542,1.72236727,606.46,606.03,5.34401666]
[1740917834747,1.59839481,606.45,606.03,5.34401666]
[1740917834948,4.15646228,606.45,606.03,5.34401666]
[1740917835144,2.7275417,606.44,606.03,5.34401666]
[1740917835745,1.12914689,606.43,606.03,5.34401666]
[1740917835947,2.8515923,606.43,606.03,5.34401666]
[1740917836143,1.12914689,606.42,606.03,5.34401666]
[1740917836745,1.12914689,606.41,606.03,5.34401666]
[1740917837151,1.12914689,606.4,606.03,5.34401666]
[1740917837547,1.12914689,606.39,606.03,5.34401666]
[1740917838252,1.12914689,606.38,606.03,5.34401666]
[1740917838452,1.12914689,606.37,606.03,5.34401666]
[1740917839046,1.12914689,606.36,606.03,5.34401666]
[1740917839552,1.72249514,606.4,606.03,5.34401666]
[1740917839953,1.12903307,606.39,606.03,5.34401666]
[1740917840553,1.12903307,606.38,606.03,5.34401666]
[1740917840954,1.12903307,606.37,606.03,5.34401666]
[1740917841453,1.12903307,606.36,606.03,5.34401666]
[1740917841846,1.12903307,606.35,606.03,5.34401666]
[1740917842251,1.12903307,606.34,606.03,5.34401666]
[1740917842648,1.72249514,606.4,606.03,3.37901666]
[1740917843156,1.12894983,606.39,606.03,3.37901666]
[1740917843550,1.12894983,606.38,606.03,3.37901666]
[1740917843953,1.12894983,606.37,606.03,3.37901666]
[1740917844551,1.12894983,606.36,606.03,3.37901666]
[1740917844751,1.12894983,606.35,606.03,3.37901666]
[1740917845153,1.72249514,606.4,606.03,3.37901666]
[1740917845555,1.12887704,606.39,606.03,3.37901666]
[1740917845752,1.12887704,606.39,606.03,5.43501666]
[1740917846257,1.12887704,606.38,606.03,5.43501666]
[1740917846654,1.12887704,606.37,606.03,5.43501666]
[1740917847057,1.12887704,606.36,606.03,5.43501666]
[1740917847359,1.72249514,606.4,606.03,5.43501666]
[1740917847559,3.02470709,606.56,606.03,5.43501666]
[1740917847754,1.12838173,606.39,606.03,5.43501666]
[1740917847961,2.85088398,606.39,606.03,5.43501666]
[1740917848161,1.12838173,606.39,606.03,5.43501666]
[1740917848358,1.72252356,606.38,606.03,5.43501666]
[1740917848554,2.85090529,606.38,606.03,5.43501666]
[1740917848957,1.12838173,606.37,606.03,5.43501666]
[1740917849155,1.12838173,606.36,606.03,5.43501666]
[1740917849560,1.72252356,606.38,606.03,5.43501666]
[1740917850562,1.12806004,606.37,606.03,5.43501666]
[1740917851161,1.12806004,606.36,606.03,5.43501666]
[1740917851566,1.72253067,606.39,606.03,5.43501666]
[1740917851968,1.12802398,606.38,606.03,5.43501666]
[1740917852362,1.12802398,606.37,606.03,5.43501666]
[1740917852560,1.12802398,606.36,606.03,5.43501666]
[1740917853067,1.72253067,606.39,606.03,5.43501666]
[1740917853466,1.42682883,606.46,606.03,5.43501666]
[1740917853666,1.12821726,606.38,606.03,5.43501666]
[1740917854167,1.12821726,606.37,606.03,5.43501666]
[1740917854568,1.7224312,606.45,606.03,5.43501666]
[1740917855268,1.12835615,606.44,606.03,5.43501666]
[1740917855761,1.12835615,606.43,606.03,5.43501666]
[1740917856362,1.12835615,606.42,606.03,5.43501666]
[1740917856763,1.72244541,606.41,606.03,5.43501666]
[1740917857070,2.85080156,606.41,606.03,5.43501666]
[1740917857567,1.12835615,606.4,606.03,5.43501666]
[1740917857971,1.12835615,606.39,606.03,5.43501666]
[1740917858469,1.72244541,606.41,606.03,5.43501666]
[1740917859067,1.12865461,606.4,606.03,5.43501666]
[1740917859671,1.12865461,606.39,606.03,5.43501666]
[1740917860269,1.72244541,606.41,606.03,5.43501666]
[1740917860270,1.12865461,606.38,606.03,5.43501666]
[1740917860772,1.12865461,606.37,606.03,5.43501666]
[1740917861270,1.12865461,606.36,606.03,5.43501666]
[1740917862269,1.12865461,606.35,606.03,5.43501666]
[1740917862771,1.12865461,606.34,606.03,5.43501666]
[1740917863267,1.12865461,606.34,606.03,1.82101666]
[1740917863471,1.12865461,606.33,606.03,1.82101666]
[1740917863970,1.12865461,606.32,606.03,1.82101666]
[1740917864565,1.12865461,606.31,606.03,1.82101666]
[1740917865664,1.12865461,606.3,606.03,1.82101666]
[1740917866670,1.72244541,606.41,606.03,1.82101666]
[1740917867071,1.12946124,606.4,606.03,1.82101666]
[1740917867471,1.12946124,606.39,606.03,1.82101666]
[1740917867665,1.12946124,606.38,606.03,1.82101666]
[1740917868266,1.12946124,606.37,606.03,1.82101666]
[1740917868966,2.85199901,606.36,606.03,1.82101666]
[1740917869165,1.12946124,606.35,606.03,1.82101666]
[1740917869772,1.12946124,606.34,606.03,1.82101666]
[1740917870068,1.12946124,606.34,606.03,0.33001666]
[1740917870270,1.12946124,606.33,606.03,0.33001666]
[1740917870965,1.12946124,606.32,606.03,0.33001666]
[1740917871767,1.12946124,606.31,606.03,0.33001666]
[1740917872175,1.12946124,606.3,606.03,0.33001666]
[1740917872673,1.12946124,606.29,606.03,0.33001666]
[1740917873273,1.12946124,606.28,606.03,0.33001666]
[1740917873475,1.12946124,606.27,606.03,0.33001666]
[1740917873970,1.12946124,606.26,606.03,0.33001666]
[1740917874473,3.03061858,606.35,606.03,0.33001666]
[1740917874674,0.97926511,606.53,606.03,0.33001666]
[1740917874873,1.72258751,606.36,606.03,0.33001666]
[1740917875174,4.16141516,606.35,606.03,0.33001666]
[1740917875367,0.97926511,606.53,606.03,0.33001666]
[1740917875368,1.13078211,606.34,606.03,0.33001666]
[1740917876068,1.13078211,606.33,606.03,0.33001666]
[1740917876870,1.13078211,606.32,606.03,0.33001666]
[1740917877469,1.13078211,606.31,606.03,0.33001666]
[1740917878078,1.13078211,606.3,606.03,0.33001666]
[1740917878773,1.13078211,606.29,606.03,0.33001666]
[1740917879376,1.13078211,606.28,606.03,0.33001666]
[1740917879976,1.13078211,606.27,606.03,0.33001666]
[1740917880579,1.13078211,606.26,606.03,0.33001666]
[1740917881279,1.13078211,606.25,606.03,0.33001666]
[1740917881779,1.13078211,606.24,606.03,0.33001666]
[1740917882172,1.13078211,606.23,606.03,0.33001666]
[1740917882576,1.13078211,606.22,606.03,0.33001666]
[1740917883175,3.03011415,606.35,606.03,0.33001666]
[1740917883376,3.03011415,606.34,606.03,0.33001666]
[1740917883578,3.03011415,606.33,606.03,0.33001666]
[1740917883783,3.02956115,606.32,606.03,0.33001666]
[1740917883982,1.13038195,606.32,606.03,0.33001666]
[1740917884380,1.13038195,606.31,606.03,0.33001666]
[1740917885086,1.13038195,606.3,606.03,0.33001666]
[1740917885689,1.13038195,606.29,606.03,0.33001666]
[1740917886485,1.13038195,606.28,606.03,0.33001666]
[1740917886888,1.13038195,606.27,606.03,0.33001666]
[1740917887490,1.13038195,606.26,606.03,0.33001666]
[1740917887990,1.13038195,606.25,606.03,0.33001666]
[1740917888396,1.72260883,606.35,606.03,0.33001666]
[1740917888397,1.13038195,606.24,606.03,0.33001666]
[1740917888596,1.13038195,606.23,606.03,0.33001666]
[1740917889199,1.13038195,606.22,606.03,0.33001666]
[1740917889995,1.13038195,606.21,606.03,0.33001666]
[1740917890401,3.02706955,606.32,606.03,0.33001666]
[1740917890594,1.42867412,606.31,606.03,0.33001666]
[1740917890799,1.12942668,606.31,606.03,0.33001666]
[1740917891206,1.12942668,606.3,606.03,0.33001666]
[1740917891799,1.12942668,606.29,606.03,0.33001666]
[1740917892499,1.12942668,606.28,606.03,0.33001666]
[1740917892895,1.12942668,606.27,606.03,0.33001666]
[1740917893401,1.12942668,606.26,606.03,0.33001666]
[1740917893999,1.12942668,606.25,606.03,0.33001666]
[1740917894998,1.12942668,606.24,606.03,0.33001666]
[1740917895601,1.12942668,606.23,606.03,0.33001666]
[1740917896204,1.12942668,606.22,606.03,0.33001666]
[1740917896998,1.12942668,606.21,606.03,0.33001666]
[1740917897504,1.59819306,606.32,606.03,0.33001666]
[1740917897706,1.72270832,606.33,606.03,0.33001666]
[1740917897898,1.59819626,606.32,606.03,0.33001666]
[1740917898101,1.72270832,606.33,606.03,0.33001666]
[1740917898302,1.12933204,606.31,606.03,0.33001666]
[1740917898799,1.12933204,606.3,606.03,0.33001666]
[1740917899105,1.12933204,606.29,606.03,0.33001666]
[1740917899606,2.72732122,606.28,605.98,1.309]
[1740917899804,1.59798918,606.27,605.98,1.309]
[1740917900001,2.72732122,606.26,605.98,1.309]
[1740917900207,1.59798918,606.25,605.98,1.309]
[1740917900407,1.12933204,606.24,605.98,1.309]
[1740917901307,1.12933204,606.23,605.98,1.309]
[1740917902008,1.12933204,606.22,605.98,1.309]
[1740917902807,1.12933204,606.21,605.98,1.309]
[1740917903404,1.12933204,606.2,605.98,1.309]
[1740917904008,1.12933204,606.19,605.98,1.309]
[1740917904609,1.12837458,606.18,605.89,1.894]
[1740917905108,1.12837458,606.17,605.89,1.894]
[1740917905505,1.12837458,606.17,605.89,0.565]
[1740917905704,1.12837458,606.16,605.89,0.565]
[1740917906107,1.12837458,606.15,605.89,0.565]
[1740917906704,1.12837458,606.14,605.89,0.565]
[1740917907009,1.12837458,606.13,605.89,0.565]
[1740917907610,0.97785632,606.64,605.89,0.565]
[1740917907803,1.72290732,606.3,605.89,0.565]
[1740917908003,1.5961992,606.29,605.89,0.565]
[1740917908205,1.5961992,606.28,605.89,0.565]